Cogmind - Beta 17 @@@ ROGUE MODE // 2026.07.25 @ 15:59:16 Player: CONM Result: Destroyed by Autobeam Turret with Autobeam Performance ------------- Evolutions (0) 0 Regions Visited (2) 400 Robots Destroyed (18) 90 Value Destroyed (557) 557 Prototype IDs (14) 280 Alien Tech Used (0) 0 Bonus (0) 0 TOTAL SCORE: 1327 Bonus ------- None Cogmind --------- Core Integrity 0/250 Matter 295/300 Energy 100/100 System Corruption 2% Temperature Cool (6) Movement Core (900) Ox17 Location -10/Subcaves Parts ------- > --- POWER (1) -------- (None) > --- PROPULSION (2) --- (None) > --- UTILITY (2) ------ High-capacity Storage Unit Makeshift Light Armor Plating > --- WEAPON (2) ------- Subdweller Beam Cannon Hammer > --- INVENTORY (20) --- Small Storage Unit Huge Storage Unit Seismic Detector Tower Shield Makeshift System Shield Self-contained Transmogrifier Subdweller Machine Gun Dirty Datajack (20) Datajack Peak State ------------ > --- POWER ------------ (None) > --- PROPULSION ------- Compact Wheel > --- UTILITY ---------- High-capacity Storage Unit Makeshift Light Armor Plating > --- WEAPON ----------- Subdweller Beam Cannon Hammer > --- INVENTORY -------- Small Storage Unit Huge Storage Unit Seismic Detector Tower Shield Makeshift System Shield Self-contained Transmogrifier Subdweller Machine Gun Dirty Datajack Datajack [Rating: 13] Favorites ----------- Power Ion Engine Engine Ion Engine Propulsion Light Treads Treads Light Treads Wheel Compact Wheel Utility Small Storage Unit Device Seismic Detector Storage Small Storage Unit Protection Makeshift Light Armor Plating Weapon Assault Rifle Energy Cannon Subdweller Beam Cannon Ballistic Gun Assault Rifle Launcher Grenade Launcher Impact Weapon Hammer Build | -11 -10 -10 ------- Run | Yrd Mat Sub Slots Evolved . | . . . Power . | . . . Propulsion . | . . . Utility . | . . . Weapon . | . . . Parts Attached 16 | 7 2 7 Power 1 | 1 . . Engine 1 | 1 . . Core . | . . . Reactor . | . . . Propulsion 5 | 2 . 3 Treads 2 | 2 . . Leg . | . . . Wheel 3 | . . 3 Hover . | . . . Flight . | . . . Utility 5 | 2 1 2 Device 1 | 1 . . Storage 2 | 1 . 1 Processor . | . . . Hackware . | . . . Protection 2 | . 1 1 Artifact . | . . . Weapon 5 | 2 1 2 Energy Gun . | . . . Energy Cannon 1 | . . 1 Ballistic Gun 2 | 2 . . Ballistic Cannon . | . . . Launcher 1 | . . 1 Special Weapon . | . . . Impact Weapon 1 | . 1 . Slashing Weapon . | . . . Piercing Weapon . | . . . Special Melee Weapon . | . . . Unidentified Prototypes . | . . . Parts Lost 9 | . . 9 Power 1 | . . 1 Propulsion 5 | . . 5 Utility . | . . . Weapon 3 | . . 3 Highest Loss Streak 5 | . . 5 To Critical Strikes 1 | . . 1 Average Backups 6 | 1 6 7 Power . | . . . Propulsion 1 | 1 2 1 Utility 2 | . 2 3 Weapon 1 | . 1 1 Tool/Special . | . . . Unused Backups 7 | . . 7 Power . | . . . Propulsion . | . . . Utility 3 | . . 3 Weapon 1 | . . 1 Tool/Special 3 | . . 3 Average Slot Usage (%) 92 | . 100 86 Engine 11 | . 14 8 Treads 20 | . 28 13 Wheel 4 | . . 8 Device 3 | . 8 . Storage 14 | . 14 14 Protection 10 | . 5 14 Energy Cannon 1 | . . 2 Ballistic Gun 17 | . 27 8 Launcher 3 | . . 5 Impact Weapon 4 | . . 8 Peak Build Rating 13 | 7 7 13 Average Rating 8 | 4 7 9 On Entrance 4 | . 7 7 Avg Prop Armor Cover (%) . | . . . Naked Turns . | . . . Heaviest Build 54 | 15 15 54 Greatest Support 40 | 40 40 40 Greatest Overweight (x) 3 | . . 3 Average Overweight (x) . | . . 1 Largest Inventory Capacity 20 | 8 8 20 Average Capacity 11 | 6 8 14 Most Carried 10 | 2 8 10 Average Carried 7 | 1 6 8 Final Capacity 20 | 8 8 20 Final Carried 10 | 2 8 10 Class Distribution -------------------- 100% | Mutant Dominant Class ---------------- Mutant | -10/Materials Mutant | -10/Subcaves Resources | -11 -10 -10 ----------- Run | Yrd Mat Sub Matter Collected 750 | 247 126 377 Remotely . | . . . Salvage Created 553 | 15 247 291 Parts 39 | 3 17 19 Haulers Intercepted . | . . . Recyclers Shooed . | . . . Parts Field Recycled . | . . . Retrieved Matter . | . . . Parts Self-Destructed 8 | . . 8 Prevented . | . . . Parts Restored . | . . . Kills | -11 -10 -10 ------- Run | Yrd Mat Sub Combat Hostiles Destroyed 16 | . 7 9 Melee 1 | . . 1 Guns 9 | . 7 2 AOE 5 | . . 5 Classes Destroyed 6 | 1 3 2 Builder 1 | . 1 . Tunneler 1 | 1 . . Swarmer 3 | . 3 . Grunt 6 | . 4 2 Sentry 1 | . . 1 Subdweller 6 | . . 6 Best Kill Streak 3 | 1 3 3 Combat Bots Only 3 | . 3 3 Max Kills in Single Turn 2 | 1 1 2 Gunslinging . | . . . Exploded 2 | . . 2 Melee 1 | . . 1 Uniques/NPCs Destroyed . | . . . Combat | -11 -10 -10 -------- Run | Yrd Mat Sub Hostile Shots Fired 139 | . 40 99 Missed 37 | . 11 26 Hits 102 | . 29 73 Projectile 102 | . 29 73 Critical Strikes 3 | . . 3 Damage Taken 1426 | . 270 1156 Core 250 | . 55 195 Absorbed by Shields . | . . . Redirected to Shielding 1 | . . 1 Core Remaining (%) 100 | 100 . . Volleys Fired 44 | 1 19 24 Largest 2 | 2 2 2 Hottest 50 | 40 40 50 Shots Fired 84 | 2 38 44 Gun 77 | 2 38 37 Cannon . | . . . Launcher 7 | . . 7 Special . | . . . Kinetic 77 | 2 38 37 Thermal . | . . . Explosive 7 | . . 7 Electromagnetic . | . . . Robot Hit Streak 16 | 2 10 16 Robot Miss Streak 3 | . 3 2 Penetration Max . | . . . Secondary Targets 2 | . 2 . Max Gunslinging Chain 1 | . 1 . Shots Hit Robots 76 | 2 24 50 Core Hits 31 | 1 14 16 Critical Kills . | . . . Critical Parts Destroyed 2 | . . 2 Critical Strikes 2 | . . 2 Smash 2 | . . 2 Melee Attacks 27 | . 2 25 Impact 27 | . 2 25 Slashing . | . . . Piercing . | . . . Sneak Attacks . | . . . Combat Hostiles . | . . . Follow-up Attacks . | . . . Damage Inflicted 1417 | 27 315 1075 Guns 720 | 27 315 378 Cannons . | . . . Explosions 379 | . . 379 Melee 318 | . . 318 Ramming . | . . . Kinetic 720 | 27 315 378 Thermal . | . . . Explosive 379 | . . 379 Electromagnetic . | . . . Impact 318 | . . 318 Slashing . | . . . Piercing . | . . . Highest Corruption 2 | . 2 2 Average Corruption 2 | . 2 2 Corruption Purged . | . . . Corruption Blocked . | . . . Effects 24 | . 4 20 Message Errors 7 | . 1 6 Matter Fused 5 | . . 5 Heat Flow Errors 2 | . . 2 Energy Discharges 6 | . 3 3 Data Loss (minor) 2 | . . 2 Misfires 1 | . . 1 Alerts 1 | . . 1 Overload Shots . | . . . Overflow Damage 86 | . . 86 Projectiles . | . . . Explosions 9 | . . 9 Melee 77 | . . 77 Knockbacks 1 | . . 1 Impact 1 | . . 1 Kinetic . | . . . Secondary . | . . . Self-Inflicted Damage 17 | . . 17 Shots 1 | . . 1 Rammed . | . . . Targets Rammed . | . . . Kicked . | . . . Crushed . | . . . Highest Temperature 191 | . 2 191 Average Temperature 80 | . 2 96 Received Heat Transfer 165 | . 48 117 Siege Activations . | . . . Martial Activations . | . . . Shielding Activations . | . . . Robots Disrupted . | . . . Combat Hostiles . | . . . Robots Corrupted 1 | . . 1 Combat Hostiles 1 | . . 1 Parts Fried 2 | . . 2 Impact Corruptions 3 | . . 3 Robots Melted . | . . . Combat Hostiles . | . . . Parts Melted . | . . . Heat Transferred . | . . . Parts Sabotaged . | . . . Parts Stolen . | . . . Parts Stripped . | . . . Power Chain Reactions . | . . . Alert | -11 -10 -10 ------- Run | Yrd Mat Sub Maximum Alert Level . | . . . Low Security (%) 100 | 100 100 . Level 1 . | . . . Level 2 . | . . . Level 3 . | . . . Level 4 . | . . . Level 5 . | . . . High Security . | . . . Max Security . | . . . Peak Influence 79 | 5 79 . Initial . | . . . Average 14 | . 16 . Influence Increases 296 | 5 231 60 Destroy 0b10 Robot/C 200 | . 140 60 Destroy 0b10 Robot/NC 10 | 5 5 . Destroy Leader 30 | . 30 . Successful Hack 37 | . 37 . Destroy Structure 4 | . 4 . Lose Combat Pursuer 15 | . 15 . Influence Decreases 296 | 5 231 60 Time Decay 286 | 5 221 60 Lost Ally 10 | . 10 . Squads Dispatched . | . . . Investigation . | . . . Extermination . | . . . Reinforcement . | . . . Assault . | . . . Garrison . | . . . Intercept . | . . . Searches Triggered . | . . . Construction Impeded . | . . . Haulers Reinforced . | . . . Active Scanning Responses . | . . . Cargo Convoy Interrupts . | . . . Stealth | -11 -10 -10 --------- Run | Yrd Mat Sub Distress Signals 2 | . 2 . Communications Jammed . | . . . Distress Signals . | . . . Times Spotted 29 | . 15 14 Peak Tracking Total 5 | . 5 5 Tactical Retreats 1 | . 1 . Traps | -11 -10 -10 ------- Run | Yrd Mat Sub Traps Triggered 3 | . 1 2 Indirectly . | . . . Trap Hack Attempts . | . . . Triggered . | . . . Disarmed . | . . . Reprogrammed . | . . . Reused . | . . . Traps Extracted . | . . . Installed . | . . . Triggered . | . . . Machines | -11 -10 -10 ---------- Run | Yrd Mat Sub Machines Disabled 1 | . . 1 Max in Single Turn 1 | . . 1 Machines Repaired . | . . . Machines Dismantled . | . . . Machines Sabotaged . | . . . Overloaded Fab Kills . | . . . Hacking | -11 -10 -10 --------- Run | Yrd Mat Sub Machines Accessed 6 | . 5 1 Terminals 5 | . 5 . Fabricators . | . . . Repair Stations . | . . . Recycling Units . | . . . Scanalyzers . | . . . Garrison Access . | . . . Total Hacks 25 | . 20 5 Successful 17 | . 12 5 Failed 8 | . 8 . Catastrophic 2 | . 2 . Database Lockouts . | . . . Manual 20 | . 20 . Terminals 20 | . 20 . Fabricators . | . . . Repair Stations . | . . . Recycling Units . | . . . Scanalyzers . | . . . Garrison Access . | . . . Terminal Hacks 9 | . 4 5 Record 4 | . . 4 Branch Access Points 1 | . 1 . Terminal Index 1 | . 1 . Zone Layout 2 | . 2 . Proto ID Catalog 1 | . . 1 Fabricator Hacks . | . . . Repair Station Hacks . | . . . Recycling Unit Hacks . | . . . Scanalyzer . | . . . Garrison Access Hacks . | . . . Unauthorized Hacks 8 | . 8 . Terminals 8 | . 8 . Track 4 | . 4 . Assimilate 2 | . 2 . Botnet 1 | . 1 . Operators 1 | . 1 . Fabricators . | . . . Repair Stations . | . . . Recycling Units . | . . . Scanalyzers . | . . . Garrison Access . | . . . Data Cores Recovered . | . . . Used . | . . . Hacking Detections 5 | . 5 . Full Trace Events . | . . . Feedback Events . | . . . Feedback Blocked . | . . . Robot Schematics Acquired . | . . . Robots Built . | . . . Authchips . | . . . Time . | . . . Total Robot Build Rating . | . . . Part Schematics Acquired . | . . . Parts Built . | . . . Authchips . | . . . Time . | . . . Total Part Build Rating . | . . . Part Studies Acquired . | . . . Parts Repaired . | . . . Time . | . . . Parts Recycled . | . . . Recycled Matter . | . . . Retrieved Matter . | . . . Retrieved Components . | . . . Parts Scanalyzed . | . . . Part Schematics Acquired . | . . . Parts Damaged . | . . . Bothacking | -11 -10 -10 ------------ Run | Yrd Mat Sub Used RIF Installer . | . . . Robots Hacked . | . . . Non-combat . | . . . Combat . | . . . Robot Hacks Applied . | . . . Relay Couplers Released . | . . . Fabnet Peak Effective % . | . . . Robots Rewired . | . . . Allies Hacked . | . . . Hacks Repelled . | . . . Allies | -11 -10 -10 -------- Run | Yrd Mat Sub Total Allies 1 | . 1 . Largest Group 1 | . 1 . Highest-Rated Group 10 | . 10 . Highest-Rated Ally 10 | . 10 . Total Orders . | . . . Ally Attacks . | . . . Total Damage . | . . . Kills . | . . . Allies Corrupted . | . . . Allies Melted . | . . . Intel | -11 -10 -10 ------- Run | Yrd Mat Sub Active Infowar (turns) 664 | 54 610 . Seismic 664 | 54 610 . Robot Analysis Total . | . . . Derelict Logs Recovered 2 | . . 2 Drone Launches . | . . . Drone Recoveries . | . . . Exploration | -11 -10 -10 ------------- Run | Yrd Mat Sub Turns Passed 2455 | 143 1042 1270 Spaces Moved 1315 | 84 477 754 Core 6 | 6 . . Treads 893 | 78 477 338 Legs . | . . . Wheels 416 | . . 416 Hover . | . . . Flight . | . . . Fastest Speed 50 | 50 160 110 Average Speed 151 | 152 160 146 Slowest Speed 240 | 160 160 240 Overloaded Moves . | . . . Propulsion Burnouts . | . . . Robots Hopped . | . . . Potential Cave-ins . | . . . Cave-ins Triggered . | . . . Exploration Rate (%) 38 | 6 62 47 Regions Visited 2 Branch Regions 1 Pre-discovered Areas 1 | . . 1 Known Exits Taken . | . . . Unknown Exits Taken 2 | 1 1 . Scrap Searched 1 | . . 1 Spaces Dug 1 | . 1 . Terrain Destroyed 29 | . 1 28 Melee 1 | . 1 . Projectile . | . . . AOE 28 | . . 28 Terrain Rammed . | . . . Walls Destroyed . | . . . Machines Disabled . | . . . Actions | -11 -10 -10 --------- Run | Yrd Mat Sub Total 1634 | 94 713 827 Wait 210 | 1 207 2 Move 1313 | 83 476 754 Hop . | . . . Pick Up 14 | 2 6 6 Fast Attach 8 | 7 . 1 Attach 5 | . . 5 Detach . | . . . Swap 13 | . 3 10 Drop . | . . . Fire 44 | 1 19 24 Melee 27 | . 2 25 Ram . | . . . Kick . | . . . Crush . | . . . Escape Stasis . | . . . Rewire . | . . . Trap . | . . . Miscellaneous . | . . . Route ------- -11/Scrapyard -10/Materials (discovered 5 exits: [*Mat x3] / *Min / *Sub) -10/Subcaves (discovered 1 exit: *Rec) History --------- Turn | Location | Event 32 | -11/Scrapyard | Discovered new exit (range 16) 144 | -11/Scrapyard | Entered Materials 166 | -10/Materials | Identified exit to Mines 316 | -10/Materials | Build established: Mutant 396 | -10/Materials | Discovered new exit (range 15) 884 | -10/Materials | Discovered new exit (range 5) 978 | -10/Materials | Discovered new exit (range 10) 1052 | -10/Materials | Discovered new exit (range 16) 1186 | -10/Materials | Entered Subcaves 1188 | -10/Subcaves | Shifting Twisted Machinery released Spk. Treads 1217 | -10/Subcaves | Learned location of Zion (-6) 1568 | -10/Subcaves | Shifting Twisted Machinery released Mak. Light Armor Plating 1763 | -10/Subcaves | Disturbed a concealed Subdweller 1896 | -10/Subcaves | Core integrity fell below 50% 1976 | -10/Subcaves | Core integrity fell below 20% 2010 | -10/Subcaves | Lost 5 parts (1p2n2w) 2160 | -10/Subcaves | Identified exit to Recycling 2245 | -10/Subcaves | Visited 4L-MR0's lab 2256 | -10/Subcaves | Found Prototype Device 2263 | -10/Subcaves | Found Tower Shield 2456 | -10/Subcaves | Destroyed by Autobeam Turret with Autobeam Last Messages --------------- to create that ginormous thing, and I hope it makes them a fat target for whoever might want to teach them a lesson in manners. 02254_ 4L-MR0 mumbles to no one in particular: "Damn Subs sneaking around stealing my stuff." 02256_ Acquired Prototype Device. 02257_ System corrupted: Heat flow error (+229). 02257_ Testing Chamber breached. 02260_ 4L-MR0 mumbles: "I'm surprised some of them are even willing to come in here given their fear of my usual visitors." 02263_ Acquired Tower Shield. 02265_ 4L-MR0 mumbles: "Who knows where that last prototype ended up, probably tossed aside somewhere as if it were useless junk..." 02267_ 4L-MR0: "Uhh... I didn't see nothing, but you'd better hope DW-4LL doesn't find out you took that." 02424_ System corrupted: Matter fused (-10). 02451_ S-10 Pest destroyed. 02455_ Com. Wheel destroyed. Map ----- +----------------------------------------------------+ | ## ## #?????????????????????????? | | ?#### ### ##????????????????????????? | | ????#####?## ## #????????????????????????? | | ???????????## ### #????????????????????????? | | ???????????## #?# ##????????????????????????? | | ???????????# #?# ##?????????????????????????? | | ???????????## ### ########????####???????????? | | ????????????## ## ####?# ?????##?????? | | ????????????## #?# ????? #?????? | | ????????????# #?# #????? #?????? | | ????????????# ## ### #????? #####?# | | ????????????## ### ## #????? ### | | ?????????????# #?# ##??## ### | | ?????????????# #### #### ### | | ?????????????# #?# # #??## | | ?????????????# #?# ### #### | | ?????????????# #### ### ## | | ?????????????# #?## ### #?# ## ## | | ?????????????## #??#####?## ### # # % | | ??????????????## #?????????## ##?## # | | ???????????????####?########?# ##??# ## # | | ????????????????????#""" "#?# #### #### ## | | ????????????????????#" #?## ## #??##### | | ????????????????????#" ##### ##????### | | ???????????????????##""t % % #?????# | | ???????????????????#> @ #????# # | | ???????????????????##""t ss %###???### # | | ????????????????????#" ######## #?????# # # | | ????????????????????#" #??????? #?????# | | ???????## ??????????#""" "#??????? #?????# | | ???????# ?????????########??????? #####?# | | ???????? ??????????## #???????? % #?# | | ???????? ###??????## #???????? #?## | | ?????????? #????## ##??###?? ##?# | | #???# ?????# ???## #### ### #?## | | #### ?????# #### ## ##?# | | ?###?# ## #???? ### | | # #?# ### ###??# ### | | # ## ## #?## #### ### | | # ## # ## #??## # # ## | | ?# #?????# "" ""!### #??# | | ## ##?????###"" ""##?####??# ## | | #########" ####???????# #### ## | | ## ## ### ##########??# ##### | | "##?# ## ##??## #####??# | | # ##???# #### ###??????# | | ## ## ##?????# ## ##????????## | | ## ## ########??????# #??????????## | | ######??????????#### #?????????# | | #??????????????# ## ##### #????????#% | +----------------------------------------------------+ Best States ------------- Heat Dissipation 25 Energy Generation 10 Energy Capacity 250 Matter Stores 300 Matter Capacity 300 Sight Range 16 Terrain Scan Density 10 Armor Coverage 100 Utility Shielding 33 Evasion (%) 40 Recoil Reduction 2 Item Schematics ----------------- None Robot Schematics ------------------ None Fabricated ------------ Nothing Repaired ---------- Nothing Studied --------- None Alien Tech Used ----------------- None Achievements -------------- None Challenges ------------ None Game ------ Seed HeavyArcJets Manual? 0 Play Time 00:21:20 Cumulative 167.8 hours Start 2026.07.19 @ 17:02:20 End 2026.07.25 @ 15:59:16 Sessions 3 Manual Loads 0 Difficulty Rogue Special Mode None Game No. 182 Rogue 182 Adventurer 0 Explorer 0 Win Type - Total 0 Types 0/0/0/0/0/0/0/0/0/0 Lore% 57 Gallery% 45 Achievement% 32 Wizard Run 0 Options --------- Layout 0 ASCII 0 Keyboard 0 Movement Arrows Keybinds 0 Fullscreen 1 Font 20/SmallcapsGlow Map View 66x50 Zoom Use 0% Tactical HUD 1 Map Filters NONE Filters NONE Steam 1 RUN: a689307a-a372-4071-b538-bb58dbb88f79